fUSD/lending_fUSD_20260326
["ID","MTS","AMOUNT","RATE_DAILY","PERIOD"]
[418906651,1774526401247,1200.0,8.285e-05,2]
[418906652,1774526405067,256.0,8.285e-05,3]
[418906653,1774526461243,300.0,8.285e-05,2]
[418906654,1774526521224,300.0,8.285e-05,2]
[418906655,1774526672813,1000.0,8.2e-05,30]
[418906656,1774526701157,300.0,8.285e-05,2]
[418906657,1774526701188,1200.0,8.285e-05,2]
[418906658,1774526706669,243.0,8.285e-05,3]
[418906659,1774526757549,374.79,8.212e-05,2]
[418906660,1774526761222,300.0,8.285e-05,2]
[418906661,1774526820672,403.55,7.753e-05,2]
[418906662,1774526821490,300.0,8.285e-05,2]
[418906663,1774526899079,1400.0,8.8e-05,3]
[418906664,1774526899548,-4082.63857268,8.286e-05,2]
[418906665,1774526901714,2900.0,8.9e-05,3]
[418906666,1774526902584,-10000.01,8.286e-05,2]
[418906667,1774526902600,-10000.01,8.286e-05,2]
[418906668,1774526902616,-10000.01,8.286e-05,2]
[418906669,1774526903803,4300.0,9e-05,3]
[418906670,1774526936855,200.0,8.8e-05,3]
[418906671,1774526938998,400.0,8.9e-05,3]
[418906672,1774526941092,600.0,9e-05,3]
[418906673,1774526951077,-500.0,8.029e-05,2]
[418906674,1774526960518,183.8,4.006e-05,2]
[418906675,1774526960750,183.8,6.01e-05,2]
[418906676,1774526960984,183.8,8.013e-05,2]
[418906677,1774526962549,158.55,6.41e-05,2]
[418906678,1774527001211,1200.0,8.185e-05,2]
[418906679,1774527006228,990.0,6.231e-05,2]
[418906680,1774527011336,140.01837425,8.285e-05,3]
[418906681,1774527011365,90.98162575,8.285e-05,3]
[418906689,1774527034068,-978296.87634729,8.186e-05,2]
[418906690,1774527034079,-41567.02432055,8.186e-05,2]
[418906691,1774527034091,-12295.93467772,8.186e-05,2]
[418906692,1774527034103,-211876.6933379,8.186e-05,2]
[418906693,1774527034119,-405.23147994,8.186e-05,2]
[418906694,1774527034175,-7153.26184371,8.186e-05,2]
[418906702,1774527038457,-2115.84094998,8.186e-05,2]
[418906703,1774527038469,-535.23601295,8.186e-05,2]
[418906704,1774527038483,-1683.47110739,8.186e-05,2]
[418906705,1774527038495,-1343.44849106,8.186e-05,2]
[418906706,1774527038615,-1242726.98143151,8.186e-05,2]
[418906707,1774527038626,-5000.0,8.286e-05,2]
[418906708,1774527038636,-250.0,8.286e-05,2]
[418906709,1774527038647,-1200.0,8.341e-05,2]
[418906710,1774527038656,-300.0,8.341e-05,2]
[418906711,1774527038667,-5000.0,8.342e-05,2]
[418906712,1774527038676,-238.46882753,8.342e-05,2]
[418906713,1774527038686,-250.0,8.357e-05,2]
[418906714,1774527038695,-309.11637866,8.494e-05,2]
[418906715,1774527038706,-228.82,8.591e-05,2]
[418906716,1774527038716,-150.0,8.6e-05,2]
[418906717,1774527038726,-1852.42,8.734e-05,2]
[418906718,1774527038737,-2646.6329,8.762e-05,2]
[418906719,1774527038748,-4146.4195,8.762e-05,2]
[418906720,1774527038758,-68613.8546,8.762e-05,2]
[418906721,1774527038768,-1300.0,8.786e-05,2]
[418906723,1774527038777,-996.5,8.789e-05,2]
[418906725,1774527038787,-160.0,8.807e-05,2]
[418906727,1774527038797,-979.16666667,8.807e-05,2]
[418906728,1774527038807,-150.0,8.86e-05,2]
[418906729,1774527038817,-996.5,8.861e-05,2]
[418906731,1774527038827,-999.99,8.862e-05,2]
[418906733,1774527038836,-9999.99,8.862e-05,2]
[418906735,1774527038846,-28480.0,8.862e-05,2]
[418906737,1774527038855,-33084.36,8.862e-05,2]
[418906739,1774527038865,-299.99,8.862e-05,2]
[418906741,1774527038874,-9999.99,8.862e-05,2]
[418906743,1774527038883,-150.99,8.862e-05,2]
[418906745,1774527038894,-9999.99,8.862e-05,2]
[418906747,1774527038903,-378.70961879,8.863e-05,2]
[418906749,1774527038914,-500.0,8.863e-05,2]
[418906751,1774527038923,-500.0,8.863e-05,2]
[418906752,1774527038932,-500.0,8.863e-05,2]
[418906755,1774527038942,-500.0,8.863e-05,2]
[418906757,1774527038951,-500.0,8.863e-05,2]
[418906758,1774527038961,-500.0,8.863e-05,2]
[418906761,1774527038971,-500.0,8.863e-05,2]
[418906763,1774527038980,-500.0,8.863e-05,2]
[418906765,1774527038990,-500.0,8.863e-05,2]
[418906767,1774527038999,-500.0,8.863e-05,2]
[418906769,1774527039009,-500.0,8.863e-05,2]
[418906771,1774527039019,-500.0,8.863e-05,2]
[418906773,1774527039029,-196.0,8.94e-05,2]
[418906775,1774527039039,-250.0,8.989e-05,2]
[418906777,1774527039048,-1680.0,9.003e-05,2]
[418906779,1774527039058,-1000.0,9.013e-05,2]
[418906781,1774527039067,-500.0,9.103e-05,2]
[418906783,1774527039076,-2500.0,9.103e-05,2]
[418906784,1774527039085,-2064.99999995,9.103e-05,2]
[418906787,1774527039095,-250.0,9.114e-05,2]
[418906789,1774527039105,-5000.0,9.114e-05,2]
[418906791,1774527039114,-7142.5544522,9.16e-05,2]
[418906793,1774527039123,-238.0,9.175e-05,2]
[418906794,1774527039133,-420.0,9.175e-05,2]
[418906797,1774527039144,-500.0,9.183e-05,2]
[418906799,1774527039153,-500.0,9.183e-05,2]
[418906800,1774527039163,-500.0,9.183e-05,2]
[418906802,1774527039172,-500.0,9.183e-05,2]
[418906804,1774527039182,-500.0,9.183e-05,2]
[418906806,1774527039192,-409.48903849,9.183e-05,2]
[418906807,1774527039201,-500.0,9.183e-05,2]
[418906808,1774527039211,-270.2965924,9.202e-05,2]
[418906809,1774527039220,-1264.0,9.203e-05,5]
[418906810,1774527039232,-1500000.0,9.203e-05,2]
[418906811,1774527039242,-150.0,9.238e-05,2]
[418906812,1774527039251,-4293.139642,9.238e-05,2]
[418906813,1774527039261,-155.04,9.241e-05,2]
[418906814,1774527039271,-152.71,9.247e-05,2]
[418906815,1774527039281,-152.14114937,9.266e-05,2]
[418906816,1774527039291,-21018.6689148,9.303e-05,2]
[418906817,1774527039300,-854.3177239,9.303e-05,2]
[418906818,1774527039310,-290045.8496793,9.303e-05,2]
[418906819,1774527039319,-5208.845645,9.303e-05,2]
[418906820,1774527039329,-122966.25,9.303e-05,2]
[418906821,1774527039339,-213.0824755,9.303e-05,2]
[418906822,1774527039348,-9189.8034256,9.303e-05,2]
[418906823,1774527039358,-200870.4553841,9.303e-05,2]
[418906824,1774527039367,-180.55,9.367e-05,2]
[418906825,1774527039378,-150.0,9.37e-05,2]
[418906826,1774527039389,-500.0,9.377e-05,2]
[418906827,1774527039399,-150.0,9.389e-05,2]
[418906828,1774527039408,-32997.7747,9.395e-05,2]
[418906829,1774527039419,-3843.0,9.4e-05,2]
[418906830,1774527039431,-2472.31293184,9.41e-05,2]
[418906831,1774527039441,-783.76,9.492e-05,2]
[418906832,1774527039450,-1041.24726387,9.494e-05,3]
[418906833,1774527039461,-104945.45831287,9.5e-05,3]
[418906834,1774527039471,-366.77663085,9.503e-05,2]
[418906835,1774527039480,-1154.11291767,9.589e-05,2]
[418906836,1774527039490,-312.0,9.6e-05,2]
[418906837,1774527039500,-308.0,9.6e-05,2]
[418906838,1774527039509,-158.55,9.616e-05,2]
[418906839,1774527039520,-155.04,9.623e-05,2]
[418906840,1774527039531,-597.64414698,9.651e-05,2]
[418906841,1774527039541,-782.48019824,9.731e-05,2]
[418906842,1774527039550,-598.58411617,9.731e-05,2]
[418906843,1774527039560,-167.05035616,9.731e-05,2]
[418906844,1774527039569,-500.0,9.731e-05,2]
[418906845,1774527039579,-255.0,9.746e-05,2]
[418906846,1774527039588,-1523.0,9.864e-05,2]
[418906847,1774527039598,-1523.0,9.864e-05,2]
[418906848,1774527039607,-1523.0,9.864e-05,2]
[418906849,1774527039616,-151.0,9.864e-05,2]
[418906850,1774527039625,-1523.0,9.864e-05,2]
[418906851,1774527039634,-160.0,9.864e-05,2]
[418906852,1774527039644,-151.0,9.864e-05,2]
[418906853,1774527039654,-1523.0,9.864e-05,2]
[418906854,1774527039663,-160.0,9.864e-05,2]
[418906855,1774527039673,-151.0,9.864e-05,2]
[418906856,1774527039683,-1523.0,9.864e-05,2]
[418906857,1774527039692,-162.81500828,9.864e-05,2]
[418906858,1774527039701,-1523.0,9.864e-05,2]
[418906859,1774527039711,-151.0,9.864e-05,2]
[418906860,1774527039721,-151.0,9.864e-05,2]
[418906861,1774527039730,-1523.0,9.864e-05,2]
[418906862,1774527039740,-1523.0,9.864e-05,2]
[418906863,1774527039750,-151.0,9.864e-05,2]
[418906864,1774527039760,-1523.0,9.864e-05,2]
[418906865,1774527039770,-151.0,9.864e-05,2]
[418906866,1774527039779,-1523.0,9.864e-05,2]
[418906867,1774527039788,-151.0,9.864e-05,2]
[418906868,1774527039798,-1523.0,9.864e-05,2]
[418906869,1774527039808,-1523.0,9.864e-05,2]
[418906870,1774527039817,-1523.0,9.864e-05,2]
[418906871,1774527039827,-1523.0,9.864e-05,2]
[418906872,1774527039836,-1523.0,9.864e-05,2]
[418906873,1774527039846,-2351.0,9.904e-05,2]
[418906874,1774527039855,-300.09272576,9.97e-05,2]
[418906875,1774527039865,-1523.0,9.97e-05,2]
[418906876,1774527039874,-151.0,9.97e-05,2]
[418906877,1774527039884,-151.0,9.97e-05,2]
[418906878,1774527039894,-1523.0,9.97e-05,2]
[418906879,1774527039903,-151.0,9.97e-05,2]
[418906880,1774527039913,-151.0,9.97e-05,2]
[418906881,1774527039922,-504.59749538,9.97e-05,2]
[418906882,1774527039932,-151.0,9.97e-05,2]
[418906883,1774527039941,-151.0,9.97e-05,2]
[418906884,1774527039951,-151.0,9.97e-05,2]
[418906885,1774527039960,-151.0,9.97e-05,2]
[418906886,1774527039970,-151.0,9.97e-05,2]
[418906887,1774527039980,-1523.0,9.97e-05,2]
[418906888,1774527039989,-1523.0,9.97e-05,2]
[418906889,1774527039998,-1297.07831781,9.97e-05,2]
[418906890,1774527040008,-1523.0,9.97e-05,2]
[418906891,1774527040017,-1523.0,9.97e-05,2]
[418906892,1774527040027,-153.64478105,9.97e-05,2]
[418906893,1774527040036,-1523.0,9.97e-05,2]
[418906894,1774527040046,-225.8088978,9.97e-05,2]
[418906895,1774527040056,-1523.0,9.97e-05,2]
[418906896,1774527040065,-1523.0,9.97e-05,2]
[418906897,1774527040074,-1523.0,9.97e-05,2]
[418906898,1774527040084,-1523.0,9.97e-05,2]
[418906900,1774527040093,-1523.0,9.97e-05,2]
[418906902,1774527040103,-1523.0,9.97e-05,2]
[418906904,1774527040112,-1523.0,9.97e-05,2]
[418906906,1774527040122,-1523.0,9.97e-05,2]
[418906908,1774527040131,-1523.0,9.97e-05,2]
[418906909,1774527040140,-1523.0,9.97e-05,2]
[418906910,1774527040150,-1523.0,9.97e-05,2]
[418906911,1774527040159,-1523.0,9.97e-05,2]
[418906912,1774527040169,-1523.0,9.97e-05,2]
[418906913,1774527040177,-1523.0,9.97e-05,2]
[418906914,1774527040187,-1523.0,9.97e-05,2]
[418906915,1774527040196,-1523.0,9.97e-05,2]
[418906916,1774527040205,-1523.0,9.97e-05,2]
[418906917,1774527040214,-1523.0,9.97e-05,2]
[418906918,1774527040223,-1523.0,9.97e-05,2]
[418906919,1774527040232,-1523.0,9.97e-05,2]
[418906920,1774527040242,-1523.0,9.97e-05,2]
[418906921,1774527040251,-980.05197551,9.97e-05,2]
[418906922,1774527040260,-173.16671475,0.0001,2]
[418906923,1774527040269,-218.89082333,0.0001,2]
[418906924,1774527040279,-1000.0,0.0001,2]
[418906925,1774527040288,-270.37539235,0.0001,2]
[418906926,1774527040297,-151.0,0.0001,2]
[418906927,1774527040307,-500.0,0.0001,2]
[418906928,1774527040316,-151.0,0.0001,2]
[418906929,1774527040325,-151.0,0.0001,2]
[418906930,1774527040334,-500.0,0.0001,2]
[418906931,1774527040344,-151.0,0.0001,2]
[418906932,1774527040353,-151.0,0.0001,2]
[418906933,1774527040362,-500.0,0.0001,2]
[418906934,1774527040371,-151.0,0.0001,2]
[418906935,1774527040381,-151.0,0.0001,2]
[418906936,1774527040390,-500.0,0.0001,2]
[418906937,1774527040399,-151.0,0.0001,2]
[418906938,1774527040409,-151.0,0.0001,2]
[418906939,1774527040418,-500.0,0.0001,2]
[418906940,1774527040427,-151.0,0.0001,2]
[418906941,1774527040436,-151.0,0.0001,2]
[418906942,1774527040446,-500.0,0.0001,2]
[418906943,1774527040455,-151.0,0.0001,2]
[418906944,1774527040464,-151.0,0.0001,2]
[418906945,1774527040473,-500.0,0.0001,2]
[418906946,1774527040482,-151.0,0.0001,2]
[418906947,1774527040491,-175.05501126,0.0001,2]
[418906948,1774527040500,-151.0,0.0001,2]
[418906949,1774527040509,-500.0,0.0001,2]
[418906950,1774527040519,-151.0,0.0001,2]
[418906951,1774527040528,-151.0,0.0001,2]
[418906952,1774527040537,-500.0,0.0001,2]
[418906953,1774527040547,-151.0,0.0001,2]
[418906954,1774527040556,-151.0,0.0001,2]
[418906955,1774527040565,-500.0,0.0001,2]
[418906956,1774527040574,-151.0,0.0001,2]
[418906957,1774527040583,-151.0,0.0001,2]
[418906958,1774527040592,-500.0,0.0001,2]
[418906959,1774527040602,-151.0,0.0001,2]
[418906960,1774527040611,-151.0,0.0001,2]
[418906961,1774527040840,-500.0,0.0001,2]
[418906962,1774527040852,-151.0,0.0001,2]
[418906963,1774527040862,-151.0,0.0001,2]
[418906964,1774527040872,-151.0,0.0001,2]
[418906965,1774527040882,-151.0,0.0001,2]
[418906966,1774527040893,-151.0,0.0001,2]
[418906967,1774527040903,-151.0,0.0001,2]
[418906968,1774527040914,-151.0,0.0001,2]
[418906969,1774527040924,-151.0,0.0001,2]
[418906970,1774527040933,-151.0,0.0001,2]
[418906971,1774527040943,-291.61055367,0.0001,2]
[418906972,1774527040953,-151.0,0.0001,2]
[418906973,1774527040963,-5800.0,0.0001,3]
[418906974,1774527040973,-1959.26279,0.0001,2]
[418906975,1774527040983,-1586.41285734,0.0001,2]
[418906976,1774527040992,-800.0,0.0001,3]
[418906977,1774527041003,-197.2616,0.0001,2]
[418906978,1774527041011,-297.34082082,0.0001,2]
[418906979,1774527041021,-1943.54141677,0.0001,2]
[418906980,1774527041030,-2752.69256509,0.0001,2]
[418906981,1774527041039,-22935.70002008,0.0001,2]
[418906982,1774527041049,-348.31669646,0.0001,2]
[418906983,1774527041058,-502.06723984,0.0001,2]
[418906984,1774527041069,-502.06723984,0.0001,2]
[418906985,1774527041078,-203.7739763,0.0001,7]
[418906986,1774527041091,-155.04,0.00010004,2]
[418906987,1774527041100,-587.0,0.00010092,2]
[418906988,1774527041111,-500.0,0.000101,2]
[418906989,1774527041122,-500.0,0.000101,2]
[418906990,1774527041133,-502.50023901,0.000101,2]
[418906991,1774527041143,-168.14,0.00010133,2]
[418906992,1774527041153,-7142.5544522,0.00010185,2]
[418906993,1774527041163,-1959.26279,0.000102,2]
[418906994,1774527041173,-509.23,0.00010233,2]
[418906995,1774527041183,-476.53,0.00010239,2]
[418906996,1774527041192,-224.77,0.00010263,2]
[418906997,1774527041202,-2000.0,0.00010274,2]
[418906998,1774527041211,-152.71,0.00010274,2]
[418906999,1774527041221,-415.82817264,0.00010281,2]
[418907000,1774527041230,-840.541605,0.00010281,2]
[418907001,1774527041240,-840.541605,0.00010281,2]
[418907002,1774527041249,-840.541605,0.00010281,2]
[418907003,1774527041258,-840.541605,0.00010281,2]
[418907004,1774527041267,-248.71521984,0.00010281,2]
[418907005,1774527041276,-231.0,0.0001033,3]
[418907006,1774527041285,-500.0,0.00010344,2]
[418907007,1774527041295,-500.0,0.00010344,2]
[418907008,1774527041304,-500.0,0.00010344,2]
[418907009,1774527041314,-500.0,0.00010344,2]
[418907010,1774527041326,-854.3177239,0.00010344,2]
[418907011,1774527041336,-5208.845645,0.00010344,2]
[418907012,1774527041346,-1600.0,0.00010355,2]
[418907013,1774527041355,-178.561689,0.00010381,2]
[418907014,1774527041365,-178.561689,0.00010381,2]
[418907015,1774527041374,-178.561689,0.00010381,2]
[418907016,1774527041383,-178.561689,0.00010381,2]
[418907017,1774527041393,-500.0,0.00010381,2]
[418907018,1774527041402,-500.0,0.00010381,2]
[418907019,1774527041411,-500.0,0.00010381,2]
[418907020,1774527041420,-500.0,0.00010381,2]
[418907021,1774527041429,-840.541605,0.00010381,2]
[418907022,1774527041439,-840.541605,0.00010381,2]
[418907023,1774527041448,-840.541605,0.00010381,2]
[418907024,1774527041456,-840.541605,0.00010381,2]
[418907025,1774527041466,-21018.6689148,0.00010381,2]
[418907026,1774527041475,-290045.8496793,0.00010381,2]
[418907027,1774527041484,-122966.25,0.00010381,2]
[418907028,1774527041494,-9189.8034256,0.00010381,2]
[418907029,1774527041503,-200870.4553841,0.00010381,2]
[418907030,1774527041512,-155.04,0.00010385,2]
[418907031,1774527041521,-1959.2628,0.000104,2]
[418907032,1774527041531,-305.66096444,0.000104,7]
[418907033,1774527041540,-151.0,0.0001042,2]
[418907034,1774527041549,-168.12,0.00010522,2]
[418907035,1774527041558,-168.12,0.00010522,2]
[418907036,1774527041567,-234.854895,0.00010531,2]
[418907037,1774527041577,-1133.0,0.00010596,5]
[418907038,1774527041587,-1959.26279,0.000106,2]
[418907039,1774527041596,-350.0,0.00010643,2]
[418907040,1774527041605,-350.0,0.0001068,2]
[418907041,1774527041615,-160.0,0.00010682,2]
[418907042,1774527041626,-350.0,0.00010705,2]
[418907043,1774527041637,-433.0,0.00010721,2]
[418907044,1774527041646,-350.0,0.00010732,2]
[418907045,1774527041656,-1000.0,0.00010737,2]
[418907046,1774527041667,-160.0,0.0001074,2]
[418907047,1774527041677,-202.25861,0.0001074,2]
[418907048,1774527041687,-244.517221,0.0001074,2]
[418907049,1774527041697,-1000.0,0.00010746,2]
[418907050,1774527041707,-1000.0,0.00010756,2]
[418907051,1774527041718,-155.04,0.00010767,2]
[418907052,1774527041727,-1000.0,0.00010782,2]
[418907053,1774527041737,-1959.2628,0.000108,2]
[418907054,1774527041746,-1000.0,0.00010816,2]
[418907055,1774527041756,-1000.0,0.00010835,2]
[418907056,1774527041765,-350.0,0.00010841,2]
[418907057,1774527041775,-1003.5,0.00010872,2]
[418907058,1774527041785,-201.217855,0.00010877,2]
[418907059,1774527041795,-1056.82865217,0.00010878,2]
[418907060,1774527041806,-1000.0,0.00010879,2]
[418907061,1774527041816,-3292.0,0.00010894,2]
[418907062,1774527041826,-1000.0,0.00010895,2]
[418907063,1774527041836,-7238.31531537,0.000109,2]
[418907064,1774527041847,-7238.3153153,0.000109,2]
[418907065,1774527041857,-7300.0,0.000109,3]
[418907066,1774527041866,-1000.0,0.000109,3]
[418907067,1774527041875,-1000.0,0.00010918,2]
[418907068,1774527041884,-1000.0,0.00010941,2]
[418907069,1774527041893,-200.0,0.00010959,2]
[418907070,1774527041903,-150.0,0.00010959,2]
[418907071,1774527041912,-166.66,0.00010959,2]
[418907072,1774527041921,-3387.91,0.00010959,2]
[418907073,1774527041930,-902.4,0.00010959,2]
[418907074,1774527041939,-260.279982,0.00010987,2]
[418907075,1774527041948,-160.0,0.00010987,2]
[418907076,1774527041957,-1959.26279,0.00011,2]
[418907077,1774527041967,-7238.3153153,0.00011046,2]
[418907078,1774527041976,-636.07,0.00011055,2]
[418907079,1774527041985,-476.54,0.00011055,2]
[418907080,1774527041995,-166.66,0.00011068,2]
[418907081,1774527042004,-502.06723984,0.00011089,2]
[418907082,1774527042013,-2116.63174341,0.00011099,2]
[418907083,1774527042023,-2116.63174337,0.00011099,2]
[418907084,1774527042032,-2116.63174337,0.00011099,2]
[418907085,1774527042041,-2116.63174337,0.00011099,2]
[418907086,1774527042051,-49679.26237277,0.00011099,2]
[418907087,1774527042061,-49679.26237272,0.00011099,2]
[418907088,1774527042070,-49679.26237272,0.00011099,2]
[418907089,1774527042080,-49679.26237272,0.00011099,2]
[418907090,1774527042089,-500.0,0.00011099,2]
[418907091,1774527042098,-500.0,0.00011099,2]
[418907092,1774527042107,-500.0,0.00011099,2]
[418907093,1774527042117,-500.0,0.00011099,2]
[418907094,1774527042126,-2000.0,0.000111,2]
[418907095,1774527042136,-200.0,0.000111,2]
[418907096,1774527042146,-877.69700835,0.000111,2]
[418907097,1774527042155,-350.0,0.00011154,2]
[418907098,1774527042164,-166.66,0.00011178,2]
[418907099,1774527042174,-7142.5544522,0.0001121,2]
[418907100,1774527042183,-1322.82718115,0.00011211,2]
[418907101,1774527042192,-200.0,0.00011211,2]
[418907102,1774527042201,-166.66,0.00011288,2]
[418907103,1774527042211,-2000.0,0.00011301,2]
[418907104,1774527042220,-152.71,0.00011301,2]
[418907105,1774527042229,-200.0,0.00011323,2]
[418907106,1774527042238,-49679.26237272,0.00011357,2]
[418907107,1774527042247,-854.3177239,0.00011385,2]
[418907108,1774527042256,-5208.845645,0.00011385,2]
[418907109,1774527042265,-151.25612,0.0001139,2]
[418907110,1774527042275,-1600.0,0.0001139,2]
[418907111,1774527042284,-166.66,0.00011397,2]
[418907112,1774527042293,-2116.63174337,0.00011412,2]
[418907113,1774527042303,-200.0,0.00011436,2]
[418907114,1774527042313,-21018.6689148,0.0001146,2]
[418907115,1774527042322,-290045.8496793,0.0001146,2]
[418907116,1774527042332,-122966.25,0.0001146,2]
[418907117,1774527042340,-9189.8034256,0.0001146,2]
[418907118,1774527042350,-200870.4553841,0.0001146,2]
[418907119,1774527042359,-178.561689,0.0001146,2]
[418907120,1774527042369,-178.561689,0.0001146,2]
[418907121,1774527042378,-178.561689,0.0001146,2]
[418907122,1774527042387,-178.561689,0.0001146,2]
[418907123,1774527042396,-178.561689,0.0001146,2]
[418907124,1774527042405,-178.561689,0.0001146,2]
[418907125,1774527042414,-178.561689,0.0001146,2]
[418907126,1774527042423,-178.561689,0.0001146,2]
[418907127,1774527042432,-500.0,0.0001146,2]
[418907128,1774527042441,-500.0,0.0001146,2]
[418907129,1774527042451,-500.0,0.0001146,2]
[418907130,1774527042460,-500.0,0.0001146,2]
[418907131,1774527042470,-840.541605,0.0001146,2]
[418907132,1774527042479,-840.541605,0.0001146,2]
[418907133,1774527042488,-840.541605,0.0001146,2]
[418907134,1774527042498,-840.541605,0.0001146,2]
[418907135,1774527042507,-350.0,0.00011479,2]
[418907136,1774527042516,-259.4143,0.000115,2]
[418907137,1774527042526,-166.66,0.00011507,2]
[418907138,1774527042535,-3295.17,0.00011507,2]
[418907139,1774527042545,-350.0,0.00011543,2]
[418907140,1774527042554,-200.0,0.00011551,2]
[418907141,1774527042564,-500.0,0.00011609,2]
[418907142,1774527042574,-500.0,0.00011609,2]
[418907143,1774527042583,-500.0,0.00011609,2]
[418907144,1774527042592,-500.0,0.00011609,2]
[418907145,1774527042601,-840.541605,0.00011678,2]
[418907146,1774527042611,-840.541605,0.00011678,2]
[418907147,1774527042620,-840.541605,0.00011678,2]
[418907148,1774527042630,-840.541605,0.00011678,2]
[418907149,1774527042641,-350.0,0.00011709,2]
[418907150,1774527042650,-430.46,0.00011719,2]
[418907151,1774527042659,-530.911858,0.0001175,2]
[418907152,1774527042668,-430.46,0.00011758,2]
[418907153,1774527042677,-350.0,0.00011787,2]
[418907154,1774527042687,-736.0,0.00011793,2]
[418907155,1774527042696,-350.0,0.00011799,2]
[418907156,1774527042705,-430.46,0.00011803,2]
[418907157,1774527042714,-1492.522,0.00011824,2]
[418907158,1774527042724,-3516.0,0.00011824,2]
[418907159,1774527042733,-1045.0,0.00011824,2]
[418907160,1774527042743,-150.0,0.00011824,2]
[418907161,1774527042752,-1262.0,0.00011824,2]
[418907162,1774527042762,-1216.0,0.00011824,2]
[418907163,1774527042771,-924.0,0.00011824,2]
[418907164,1774527042780,-6011.0,0.00011824,2]
[418907165,1774527042790,-418.463,0.00011824,2]
[418907166,1774527042799,-430.46,0.00011843,2]
[418907167,1774527042809,-430.48665564,0.00011883,2]
[418907168,1774527042818,-49679.26237272,0.00011946,2]
[418907169,1774527042827,-4609.0,0.00011983,2]
[418907170,1774527042836,-2116.63174337,0.00011989,2]
[418907171,1774527042846,-5533.0,0.00012,5]
[418907172,1774527042855,-7238.3153153,0.00012017,2]
[418907173,1774527042865,-289.30979476,0.00012026,2]
[418907174,1774527042875,-228.82,0.00012027,2]
[418907175,1774527042884,-350.0,0.00012034,2]
[418907176,1774527042893,-2264.104132,0.00012085,2]
[418907177,1774527042903,-1232.988201,0.00012111,2]
[418907178,1774527042912,-7142.5544522,0.00012235,2]
[418907179,1774527042922,-442.68865982,0.00012277,2]
[418907180,1774527042931,-180.55,0.00012306,2]
[418907181,1774527042940,-2000.0,0.00012329,2]
[418907182,1774527042949,-152.71,0.00012329,2]
[418907183,1774527042959,-3185.573122,0.00012351,2]
[418907184,1774527042970,-231.0,0.00012375,3]
[418907185,1774527042981,-1600.0,0.00012426,2]
[418907186,1774527042991,-854.3177239,0.00012426,2]
[418907187,1774527043001,-5208.845645,0.00012426,2]
[418907188,1774527043011,-213.0824755,0.00012426,2]
[418907189,1774527043020,-175.05501124,0.00012502,2]
[418907190,1774527043029,-498.391299,0.00012509,2]
[418907191,1774527043040,-4293.139642,0.00012519,2]
[418907192,1774527043050,-49679.26237272,0.00012534,2]
[418907193,1774527043060,-178.561689,0.00012538,2]
[418907194,1774527043069,-178.561689,0.00012538,2]
[418907195,1774527043080,-178.561689,0.00012538,2]
[418907196,1774527043090,-178.561689,0.00012538,2]
[418907197,1774527043099,-840.541605,0.00012538,2]
[418907198,1774527043109,-840.541605,0.00012538,2]
[418907199,1774527043119,-840.541605,0.00012538,2]
[418907201,1774527043129,-840.541603,0.00012538,2]
[418907203,1774527043138,-21018.6689148,0.00012538,2]
[418907205,1774527043148,-290045.8496793,0.00012538,2]
[418907206,1774527043158,-122966.25,0.00012538,2]
[418907207,1774527043168,-9189.8034256,0.00012538,2]
[418907208,1774527043178,-200870.4553841,0.00012538,2]
[418907209,1774527043189,-2116.63174337,0.00012566,2]
[418907210,1774527043199,-150.0,0.00012595,2]
[418907211,1774527043209,-150.0,0.00012595,2]
[418907212,1774527043218,-151.0,0.00012684,2]
[418907213,1774527043228,-341.1499,0.000129,2]